bitfinex/quotes_SOLUSD_20230113
["timestamp","ask_amount","ask_price","bid_price","bid_amount"]
[1673612614610,45.14,16.617,16.603,45.18]
[1673612614836,20.0,16.616,16.604,27.0]
[1673612615566,20.0,16.618,16.605,45.17]
[1673612615773,20.0,16.618,16.604,27.0]
[1673612615774,20.0,16.618,16.606,10.0]
[1673612615973,17.0,16.617,16.606,10.0]
[1673612616184,20.0,16.616,16.606,10.0]
[1673612617135,20.0,16.618,16.606,10.0]
[1673612617349,20.0,16.619,16.606,10.0]
[1673612617556,20.0,16.621,16.606,55.17]
[1673612618289,17.0,16.62,16.606,55.17]
[1673612618611,45.13,16.622,16.606,55.17]
[1673612618612,45.13,16.622,16.607,17.0]
[1673612618933,45.13,16.622,16.608,45.16]
[1673612619138,45.11,16.626,16.61,12.27]
[1673612619352,45.11,16.626,16.61,22.27]
[1673612619674,45.11,16.626,16.61,67.43]
[1673612619865,45.11,16.628,16.61,22.27]
[1673612620078,45.11,16.628,16.609,119.4947]
[1673612620281,45.11,16.628,16.607,45.17]
[1673612620282,12.28,16.62,16.607,45.17]
[1673612620499,65.13,16.619,16.605,110.9094]
[1673612620704,17.0,16.618,16.605,110.9094]
[1673612620925,20.0,16.617,16.605,110.9094]
[1673612621124,17.0,16.616,16.605,110.9094]
[1673612621339,20.0,16.615,16.605,110.9094]
[1673612623664,17.0,16.614,16.605,110.9094]
[1673612632910,20.0,16.615,16.605,110.9094]
[1673612633108,20.0,16.618,16.606,45.17]
[1673612633316,12.28,16.62,16.607,10.0]
[1673612633529,45.13,16.622,16.607,10.0]
[1673612633956,154.4235,16.623,16.609,10.0]
[1673612634384,109.3035,16.623,16.609,10.0]
[1673612635442,17.0,16.622,16.609,10.0]
[1673612635635,17.0,16.622,16.609,122.5209]
[1673612636913,45.13,16.621,16.609,112.5209]
[1673612637239,17.0,16.62,16.608,45.16]
[1673612637425,65.13,16.619,16.605,110.9094]
[1673612637642,17.0,16.618,16.605,110.9094]
[1673612637857,65.14,16.617,16.605,110.9094]
[1673612638174,17.0,16.616,16.605,110.9094]
[1673612638378,65.14,16.615,16.605,110.9094]
[1673612638590,17.0,16.614,16.605,110.9094]
[1673612640279,20.0,16.615,16.605,110.9094]
[1673612640588,20.0,16.618,16.606,10.0]
[1673612641120,20.0,16.619,16.606,55.17]
[1673612648515,12.28,16.62,16.606,55.17]
[1673612648703,154.4235,16.623,16.61,12.25]
[1673612649003,109.3035,16.623,16.611,45.16]
[1673612649196,109.3035,16.623,16.61,12.25]
[1673612649849,17.0,16.622,16.61,12.25]
[1673612650054,17.0,16.622,16.61,57.41]
[1673612652057,17.0,16.622,16.61,45.16]
[1673612652282,17.0,16.622,16.609,117.5156]
[1673612652603,62.13,16.622,16.609,117.5156]
[1673612653208,61.4,16.62,16.607,45.17]
[1673612653399,61.4,16.62,16.603,112.6573]
[1673612653400,62.13,16.619,16.603,112.6573]
[1673612653609,20.0,16.618,16.603,112.6573]
[1673612653842,62.14,16.617,16.603,112.6573]
[1673612654052,20.0,16.616,16.603,112.6573]
[1673612654243,62.14,16.615,16.603,112.6573]
[1673612654457,20.0,16.614,16.603,112.6573]
[1673612654667,17.0,16.613,16.603,112.6573]
[1673612656238,62.15,16.613,16.598,23.822768]
[1673612656451,12.28,16.61,16.598,23.822768]
[1673612656783,82.16,16.609,16.598,23.822768]
[1673612662361,65.16,16.609,16.598,23.822768]
[1673612663607,17.0,16.608,16.598,23.822768]
[1673612663933,65.17,16.607,16.598,23.822768]
[1673612664125,20.0,16.607,16.598,23.822768]
[1673612664864,17.0,16.606,16.598,23.822768]
[1673612665072,20.0,16.605,16.598,23.822768]
[1673612665721,20.0,16.607,16.598,23.822768]
[1673612668038,20.0,16.608,16.598,23.822768]
[1673612668452,20.0,16.608,16.599,10.0]
[1673612668663,20.0,16.609,16.599,10.0]
[1673612668855,12.16,16.61,16.599,10.0]
[1673612669070,45.15,16.613,16.599,55.19]
[1673612670346,17.0,16.612,16.599,55.19]
[1673612670966,17.0,16.612,16.599,10.0]
[1673612672142,12.28,16.61,16.598,69.012768]
[1673612672344,17.0,16.609,16.598,23.822768]
[1673612673503,12.28,16.61,16.598,23.822768]
[1673612674351,12.28,16.61,16.598,33.822768]
[1673612675400,12.28,16.61,16.598,23.822768]
[1673612675718,17.0,16.609,16.598,23.822768]
[1673612677623,77.39963306,16.619,16.598,23.822768]
[1673612677624,45.14,16.618,16.6,12.28]
[1673612677856,45.14,16.618,16.601,55.18]
[1673612678043,45.14,16.618,16.601,10.0]
[1673612678586,45.14,16.618,16.601,122.5449]
[1673612678880,17.0,16.613,16.601,122.5449]
[1673612681508,17.0,16.613,16.602,45.18]
[1673612681708,17.0,16.613,16.603,10.0]
[1673612681924,17.0,16.613,16.604,45.17]
[1673612682228,12.31,16.62,16.605,10.0]
[1673612682449,12.31,16.62,16.606,45.17]
[1673612682450,20.0,16.619,16.606,45.17]
[1673612682881,20.0,16.619,16.603,10.0]
[1673612682882,17.0,16.618,16.604,45.17]
[1673612683073,65.14,16.617,16.603,10.0]
[1673612683412,17.0,16.616,16.603,10.0]
[1673612683613,17.0,16.616,16.604,45.17]
[1673612683832,20.0,16.615,16.603,55.18]
[1673612684030,45.13,16.622,16.603,55.18]
[1673612684254,109.3035,16.623,16.605,10.0]
[1673612684449,109.3035,16.623,16.606,65.17]
[1673612684655,109.3035,16.623,16.607,10.0]
[1673612684872,109.3035,16.623,16.608,154.6344]
[1673612685398,17.0,16.622,16.608,154.6344]
[1673612685606,17.0,16.622,16.609,10.0]
[1673612686334,109.3035,16.623,16.61,12.28]
[1673612686541,109.3035,16.623,16.61,57.44]
[1673612686755,109.3035,16.623,16.611,17.0]
[1673612687717,109.3035,16.623,16.611,27.0]
[1673612688131,17.0,16.622,16.611,10.0]
[1673612690132,45.11,16.629,16.611,10.0]
[1673612690336,20.0,16.628,16.612,62.15]
[1673612690544,45.11,16.627,16.612,62.15]
[1673612690883,20.0,16.626,16.612,62.15]
[1673612691306,20.0,16.628,16.612,62.15]
[1673612691490,45.11,16.627,16.612,62.15]
[1673612691697,20.0,16.626,16.612,62.15]
[1673612691912,20.0,16.626,16.613,10.0]
[1673612692160,20.0,16.626,16.612,45.15]
[1673612692462,20.0,16.628,16.611,45.16]
[1673612692649,45.11,16.627,16.611,45.16]
[1673612692918,20.0,16.626,16.611,45.16]
[1673612693315,17.0,16.625,16.611,45.16]
[1673612693504,20.0,16.624,16.611,45.16]
[1673612693821,17.0,16.623,16.611,45.16]
[1673612694217,127.6732,16.623,16.611,45.16]
[1673612694848,127.6732,16.623,16.61,57.44]
[1673612695578,127.6732,16.623,16.606,65.17]
[1673612695856,45.13,16.622,16.606,20.0]
[1673612696021,17.0,16.621,16.606,20.0]
[1673612696327,57.41,16.62,16.606,20.0]
[1673612696517,17.0,16.619,16.606,20.0]
[1673612699466,45.14,16.618,16.606,20.0]
[1673612699677,17.0,16.617,16.606,20.0]
[1673612699887,17.0,16.617,16.605,510.4401]
[1673612700313,20.0,16.616,16.605,113.8401]
[1673612700523,17.0,16.615,16.605,113.8401]
[1673612700735,20.0,16.614,16.605,113.8401]
[1673612701666,17.0,16.613,16.605,113.8401]
[1673612702094,17.0,16.613,16.603,108.4184]
[1673612702922,45.15,16.612,16.603,108.4184]
[1673612703266,17.0,16.611,16.603,108.4184]
[1673612703653,17.0,16.612,16.603,108.4184]
[1673612704946,17.0,16.612,16.598,79.012768]
[1673612705161,16.47,16.61,16.598,23.822768]
[1673612705368,62.16,16.609,16.598,23.822768]
[1673612705584,20.0,16.608,16.598,23.822768]
[1673612705788,17.0,16.607,16.598,23.822768]
[1673612705996,20.0,16.606,16.598,23.822768]
[1673612706195,17.0,16.605,16.598,23.822768]
[1673612706405,20.0,16.604,16.598,23.822768]
[1673612707375,20.0,16.604,16.598,33.822768]
[1673612707570,92.39,16.62,16.598,33.822768]
[1673612707571,20.0,16.608,16.598,33.822768]
[1673612707781,17.0,16.607,16.598,23.822768]
[1673612707995,20.0,16.612,16.598,23.822768]
[1673612707996,20.0,16.606,16.598,23.822768]
[1673612708618,20.0,16.612,16.598,23.822768]
[1673612708842,62.16,16.611,16.598,23.822768]
[1673612709156,20.0,16.61,16.598,23.822768]
[1673612709473,62.16,16.609,16.598,23.822768]
[1673612709668,20.0,16.608,16.598,23.822768]
[1673612709996,17.0,16.607,16.598,23.822768]
[1673612710189,20.0,16.606,16.598,23.822768]
[1673612710400,17.0,16.605,16.598,23.822768]
[1673612710816,20.0,16.604,16.598,23.822768]
[1673612711037,17.0,16.603,16.598,23.822768]
[1673612711980,20.0,16.604,16.598,23.822768]
[1673612712200,20.0,16.608,16.598,23.822768]
[1673612712438,20.0,16.612,16.598,33.822768]
[1673612712731,16.47,16.61,16.598,23.822768]
[1673612712943,45.16,16.609,16.598,23.822768]
[1673612713154,20.0,16.608,16.598,23.822768]
[1673612713363,45.17,16.607,16.598,23.822768]
[1673612713678,20.0,16.606,16.598,23.822768]
[1673612713883,62.17,16.605,16.598,23.822768]
[1673612714202,20.0,16.604,16.598,23.822768]
[1673612714397,17.0,16.603,16.598,23.822768]
[1673612715774,20.0,16.604,16.598,23.822768]
[1673612715979,45.15,16.613,16.598,69.012768]
[1673612716171,45.14,16.616,16.598,69.012768]
[1673612716512,45.13,16.619,16.599,27.0]
[1673612716718,45.13,16.619,16.6,61.59]
[1673612717441,45.13,16.619,16.601,27.0]
[1673612717650,45.13,16.619,16.602,45.18]
[1673612717860,20.0,16.618,16.603,10.0]
[1673612718078,45.13,16.619,16.604,45.17]
[1673612718291,17.0,16.618,16.604,45.17]
[1673612718703,45.13,16.619,16.604,45.17]
[1673612719341,20.0,16.618,16.604,45.17]
[1673612719873,110.6732,16.623,16.604,45.17]
[1673612719874,45.13,16.622,16.605,20.0]
[1673612720086,110.6732,16.623,16.607,10.0]
[1673612720406,110.6732,16.623,16.608,45.16]
[1673612720925,17.0,16.622,16.608,45.16]
[1673612721138,16.47,16.62,16.605,119.4861]
[1673612721449,16.47,16.62,16.6,45.18]
[1673612721450,82.13,16.619,16.6,45.18]
[1673612721661,82.13,16.619,16.6,164.6661]
[1673612721852,124.80757854,16.619,16.6,164.6661]
[1673612723545,82.13,16.619,16.6,164.6661]
[1673612723760,82.13,16.619,16.6,181.0361]
[1673612723975,82.13,16.619,16.602,45.18]
[1673612724172,82.13,16.619,16.603,10.0]
[1673612724504,37.0,16.619,16.604,45.17]
[1673612724690,82.13,16.619,16.605,10.0]
[1673612724900,37.0,16.619,16.606,45.17]
[1673612725236,37.0,16.619,16.607,10.0]
[1673612725629,20.0,16.619,16.607,10.0]
[1673612726916,20.0,16.621,16.607,10.0]
[1673612727129,17.0,16.62,16.607,10.0]
[1673612727341,20.0,16.619,16.607,10.0]
[1673612727742,20.0,16.621,16.607,10.0]
[1673612727949,45.13,16.62,16.607,10.0]
[1673612728154,20.0,16.619,16.607,10.0]
[1673612728800,45.14,16.618,16.606,45.17]
[1673612728996,20.0,16.617,16.603,10.0]
[1673612729207,20.0,16.617,16.601,10.0]
[1673612729208,62.14,16.616,16.601,10.0]
[1673612729413,20.0,16.615,16.601,10.0]
[1673612729649,62.15,16.614,16.601,10.0]
[1673612730810,62.15,16.614,16.6,135.8461]
[1673612731020,62.15,16.614,16.6,119.4861]
[1673612733961,16.45,16.61,16.598,23.822768]
[1673612734181,82.16,16.609,16.598,23.822768]
[1673612741416,124.83757854,16.609,16.598,23.822768]
[1673612741840,82.16,16.609,16.598,23.822768]
[1673612744169,65.16,16.609,16.598,23.822768]
[1673612744365,20.0,16.609,16.598,23.822768]
[1673612744570,45.16,16.608,16.598,23.822768]
[1673612744779,20.0,16.607,16.598,23.822768]
[1673612745216,20.0,16.608,16.598,23.822768]
[1673612745409,62.17,16.607,16.598,23.822768]
[1673612745618,20.0,16.606,16.598,23.822768]
[1673612745829,17.0,16.605,16.598,23.822768]
[1673612746249,20.0,16.604,16.598,23.822768]
[1673612747837,20.0,16.608,16.598,23.822768]
[1673612748053,62.17,16.607,16.598,23.822768]
[1673612748261,20.0,16.606,16.598,23.822768]
[1673612748467,17.0,16.605,16.598,23.822768]
[1673612748683,20.0,16.604,16.598,23.822768]
[1673612750250,20.0,16.608,16.598,23.822768]
[1673612750775,108.9535,16.614,16.599,45.19]
[1673612750986,126.32422255,16.62,16.6,10.0]
[1673612750987,60.44422255,16.62,16.6,10.0]
[1673612751194,16.6,16.62,16.601,45.18]
[1673612751403,45.13,16.619,16.601,45.18]
[1673612751743,45.13,16.619,16.602,10.0]
[1673612751922,45.13,16.619,16.603,45.18]
[1673612752135,20.0,16.618,16.603,45.18]
[1673612752348,17.0,16.617,16.603,45.18]
[1673612752656,20.0,16.616,16.603,45.18]
[1673612752872,20.0,16.616,16.604,10.0]
[1673612753092,20.0,16.618,16.604,10.0]
[1673612754168,20.0,16.618,16.603,45.18]
[1673612754169,45.14,16.617,16.603,45.18]
[1673612754482,45.14,16.617,16.602,10.0]
[1673612754483,20.0,16.616,16.602,55.18]
[1673612754884,17.0,16.615,16.602,55.18]
[1673612755092,20.0,16.614,16.602,55.18]
[1673612755318,17.0,16.613,16.602,55.18]
[1673612755534,20.0,16.614,16.602,55.18]
[1673612755737,45.13,16.619,16.602,55.18]
[1673612755738,20.0,16.618,16.602,55.18]
[1673612755950,17.0,16.617,16.602,55.18]
[1673612756148,20.0,16.616,16.602,55.18]
[1673612756351,17.0,16.615,16.602,55.18]
[1673612756563,20.0,16.614,16.602,10.0]
[1673612756790,17.0,16.613,16.602,10.0]
[1673612757411,17.0,16.613,16.603,45.18]
[1673612758246,20.0,16.614,16.602,55.18]
[1673612758457,20.0,16.618,16.602,55.18]
[1673612758682,62.14,16.617,16.602,55.18]
[1673612758896,20.0,16.616,16.602,55.18]
[1673612759605,20.0,16.618,16.602,55.18]
[1673612760344,17.0,16.617,16.602,55.18]
[1673612760564,20.0,16.616,16.602,55.18]
[1673612763947,20.0,16.618,16.602,55.18]
[1673612764558,45.14,16.617,16.602,10.0]
[1673612764767,20.0,16.616,16.602,10.0]
[1673612765214,17.0,16.615,16.602,10.0]
[1673612765406,20.0,16.614,16.602,10.0]
[1673612765617,17.0,16.613,16.601,10.0]
[1673612766454,17.0,16.613,16.6,45.18]
[1673612766683,17.0,16.613,16.599,165.8368]
[1673612767104,62.15,16.613,16.599,165.8368]
[1673612769941,17.0,16.613,16.599,165.8368]
[1673612770250,45.15,16.612,16.599,155.8368]
[1673612770466,17.0,16.611,16.597,45.19]
[1673612770652,81.63,16.61,16.593,167.7317]
[1673612770980,17.0,16.609,16.593,122.5317]
[1673612771190,65.16,16.608,16.593,122.5317]
[1673612771390,17.0,16.607,16.593,122.5317]
[1673612771601,65.17,16.606,16.593,122.5317]
[1673612772984,17.0,16.605,16.593,122.5317]
[1673612773178,20.0,16.604,16.593,122.5317]
[1673612775301,17.0,16.603,16.593,122.5317]
[1673612778858,20.0,16.604,16.593,122.5317]
[1673612779068,20.0,16.608,16.593,122.5317]
[1673612779279,62.17,16.607,16.593,122.5317]
[1673612779500,20.0,16.606,16.593,122.5317]
[1673612779706,62.17,16.605,16.593,122.5317]
[1673612780326,20.0,16.604,16.593,122.5317]
[1673612780536,17.0,16.603,16.593,122.5317]
[1673612782970,17.0,16.603,16.594,10.0]
[1673612783709,20.0,16.604,16.594,10.0]
[1673612783922,20.0,16.608,16.594,10.0]
[1673612784233,62.17,16.607,16.594,10.0]
[1673612784437,20.0,16.606,16.594,10.0]
[1673612784647,17.0,16.605,16.594,10.0]
[1673612785067,20.0,16.604,16.594,10.0]
[1673612785280,17.0,16.603,16.594,10.0]
[1673612786025,20.0,16.604,16.594,10.0]
[1673612786232,20.0,16.608,16.594,10.0]
[1673612786427,62.17,16.607,16.594,10.0]
[1673612786751,20.0,16.606,16.594,10.0]
[1673612787169,17.0,16.605,16.594,10.0]
[1673612787380,20.0,16.604,16.594,10.0]
[1673612788234,45.16,16.609,16.595,10.0]
[1673612788235,20.0,16.608,16.595,10.0]
[1673612788424,62.17,16.607,16.595,10.0]
[1673612788640,20.0,16.606,16.594,10.0]
[1673612788839,62.17,16.605,16.593,122.5317]
[1673612789260,20.0,16.604,16.593,122.5317]
[1673612789576,62.18,16.603,16.593,122.5317]
[1673612790541,45.18,16.603,16.594,10.0]
[1673612790733,20.0,16.604,16.594,10.0]
[1673612790952,45.18,16.603,16.594,10.0]
[1673612791162,45.17,16.606,16.594,10.0]
[1673612791476,20.0,16.605,16.594,10.0]
[1673612791685,45.17,16.604,16.594,10.0]
[1673612791894,17.0,16.603,16.594,10.0]
[1673612792846,20.0,16.605,16.594,55.2]
[1673612793054,20.0,16.607,16.594,55.2]
[1673612793370,20.0,16.607,16.595,10.0]
[1673612793584,20.0,16.608,16.596,45.2]
[1673612793796,16.32,16.61,16.599,10.0]
[1673612793797,20.0,16.609,16.599,10.0]
[1673612794331,45.15,16.613,16.599,10.0]
[1673612794536,45.14,16.616,16.6,45.18]
[1673612795275,45.14,16.616,16.6,61.65]
[1673612795485,20.0,16.615,16.601,120.9236]
[1673612795687,20.0,16.615,16.602,45.18]
[1673612796119,20.0,16.618,16.602,45.18]
[1673612796438,17.0,16.617,16.603,10.0]
[1673612796649,20.0,16.616,16.604,45.17]
[1673612797374,17.0,16.615,16.603,10.0]
[1673612797580,20.0,16.614,16.603,10.0]
[1673612797801,17.0,16.613,16.603,10.0]
[1673612802554,17.0,16.613,16.601,120.9236]
[1673612802741,62.15,16.613,16.601,110.9236]
[1673612804007,62.15,16.613,16.602,10.0]
[1673612804322,134.7756,16.614,16.602,10.0]
[1673612804712,45.15,16.613,16.602,10.0]
[1673612805360,17.0,16.612,16.602,10.0]
[1673612806621,17.0,16.612,16.601,110.9236]
[1673612806840,16.47,16.61,16.594,55.2]
[1673612807059,62.16,16.609,16.593,111.1728]
[1673612807240,20.0,16.608,16.593,111.1728]
[1673612807450,62.17,16.607,16.593,111.1728]
[1673612807661,20.0,16.606,16.593,111.1728]
[1673612807876,62.17,16.605,16.593,111.1728]
[1673612808071,20.0,16.604,16.593,111.1728]
[1673612808288,17.0,16.603,16.593,111.1728]
[1673612808497,62.18,16.603,16.593,111.1728]
[1673612809346,45.18,16.603,16.593,111.1728]
[1673612809555,20.0,16.604,16.593,111.1728]
[1673612809768,20.0,16.608,16.594,10.0]
[1673612810076,45.17,16.607,16.594,10.0]
[1673612810288,20.0,16.606,16.594,10.0]
[1673612810492,45.17,16.605,16.594,10.0]
[1673612810703,20.0,16.604,16.594,10.0]
[1673612811239,20.0,16.608,16.594,10.0]
[1673612811565,62.17,16.607,16.594,10.0]
[1673612811781,20.0,16.606,16.594,10.0]
[1673612811979,62.17,16.605,16.594,10.0]
[1673612812299,20.0,16.604,16.598,23.322768]
[1673612812490,17.0,16.603,16.598,23.322768]
[1673612813337,62.18,16.603,16.598,23.322768]
[1673612813549,17.0,16.603,16.598,23.322768]
[1673612816303,17.0,16.603,16.598,20.526868]
[1673612819026,20.0,16.604,16.598,20.526868]
[1673612819238,20.0,16.608,16.598,20.526868]
[1673612819448,62.17,16.607,16.598,20.526868]
[1673612819663,20.0,16.606,16.598,20.526868]
[1673612819969,17.0,16.605,16.598,20.526868]
[1673612820171,20.0,16.604,16.598,20.526868]
[1673612821003,45.15,16.613,16.599,10.0]
[1673612821215,45.15,16.613,16.6,45.18]
[1673612821536,45.15,16.613,16.601,10.0]
[1673612822283,20.0,16.612,16.601,10.0]
[1673612823108,45.14,16.617,16.602,45.18]
[1673612823533,16.32,16.62,16.603,10.0]
[1673612823534,45.13,16.619,16.603,10.0]
[1673612824159,17.0,16.613,16.603,10.0]
[1673612826880,17.0,16.613,16.602,10.0]
[1673612827301,62.15,16.613,16.602,10.0]
[1673612827848,62.15,16.613,16.599,45.19]
[1673612827849,16.47,16.61,16.599,45.19]
[1673612828044,82.16,16.609,16.595,55.2]
[1673612828481,82.16,16.609,16.595,10.0]
[1673612829832,82.16,16.609,16.594,127.153]
[1673612830040,82.16,16.609,16.594,117.153]
[1673612830677,118.53977187,16.609,16.594,117.153]
[1673612831532,82.16,16.609,16.594,117.153]
[1673612832375,118.53977187,16.609,16.594,117.153]
[1673612833212,82.16,16.609,16.594,117.153]
[1673612834249,132.19752916,16.609,16.594,117.153]
[1673612835315,132.19752916,16.609,16.59,10.0]
[1673612837003,36.37977187,16.608,16.589,116.303]
[1673612837226,82.17,16.607,16.589,116.303]
[1673612837428,132.20752916,16.607,16.589,116.303]
[1673612837641,132.20752916,16.607,16.59,10.0]
[1673612838792,312.90752916,16.607,16.59,10.0]
[1673612839010,50.03752916,16.606,16.589,116.303]
[1673612839209,82.17,16.605,16.589,116.303]
[1673612839851,82.17,16.605,16.59,10.0]
[1673612840065,82.17,16.605,16.591,45.21]
[1673612840276,65.17,16.605,16.591,45.21]
[1673612840464,65.17,16.605,16.592,10.0]
[1673612841635,17.0,16.604,16.592,10.0]
[1673612842489,65.17,16.605,16.592,10.0]
[1673612842681,20.0,16.605,16.592,10.0]
[1673612842894,20.0,16.608,16.592,10.0]
[1673612843102,45.17,16.607,16.592,10.0]
[1673612843310,20.0,16.606,16.592,10.0]
[1673612843522,45.17,16.605,16.592,10.0]
[1673612843734,20.0,16.604,16.592,10.0]
[1673612844151,17.0,16.603,16.592,10.0]
[1673612844350,45.18,16.602,16.592,10.0]
[1673612844559,17.0,16.601,16.592,10.0]
[1673612845198,45.17,16.607,16.592,10.0]
[1673612845428,37.0,16.606,16.592,10.0]
[1673612845637,45.17,16.605,16.592,10.0]
[1673612845830,37.0,16.604,16.592,10.0]
[1673612847645,45.18,16.603,16.592,10.0]
[1673612847861,17.0,16.602,16.592,10.0]
[1673612848487,45.18,16.603,16.592,10.0]
[1673612850382,17.0,16.602,16.592,10.0]
[1673612854576,45.18,16.601,16.592,10.0]
[1673612854786,17.0,16.6,16.592,10.0]
[1673612856468,17.0,16.6,16.598,14.590568]
[1673612858243,45.18,16.603,16.598,14.590568]
[1673612858452,20.0,16.604,16.598,14.590568]
[1673612858667,20.0,16.607,16.598,14.590568]
[1673612858883,45.17,16.606,16.598,14.590568]
[1673612859103,20.0,16.605,16.598,14.590568]
[1673612860162,20.0,16.607,16.598,14.590568]
[1673612860474,20.0,16.608,16.598,14.590568]
[1673612860685,45.17,16.607,16.598,14.590568]
[1673612860879,20.0,16.606,16.598,14.590568]
[1673612861295,62.17,16.605,16.598,14.590568]
[1673612861505,20.0,16.604,16.598,14.590568]
[1673612862136,20.0,16.609,16.598,14.590568]
[1673612862476,45.16,16.608,16.598,14.590568]
[1673612862657,20.0,16.607,16.598,14.590568]
[1673612862873,62.17,16.606,16.598,14.590568]
[1673612863202,20.0,16.605,16.598,14.590568]
[1673612863524,62.17,16.604,16.598,14.590568]
[1673612864251,20.0,16.603,16.584,45.23]
[1673612864454,16.45,16.6,16.588,123.3993]
[1673612864655,65.19,16.599,16.588,123.3993]
[1673612864866,17.0,16.598,16.588,123.3993]
[1673612865087,45.19,16.597,16.588,123.3993]
[1673612865299,37.0,16.596,16.588,113.3993]
[1673612865511,45.2,16.595,16.588,113.3993]
[1673612865723,37.0,16.594,16.588,113.3993]
[1673612866782,37.0,16.594,16.579,55.24]
[1673612866984,45.2,16.593,16.58,113.9656]
[1673612867194,17.0,16.592,16.58,113.9656]
[1673612867401,17.0,16.592,16.581,10.0]
[1673612867607,45.2,16.593,16.581,10.0]
[1673612867810,20.0,16.594,16.581,55.24]
[1673612868026,20.0,16.598,16.582,10.0]
[1673612868237,62.19,16.597,16.582,10.0]
[1673612868456,20.0,16.596,16.582,10.0]
[1673612868778,62.2,16.595,16.582,10.0]
[1673612868974,20.0,16.594,16.582,10.0]
[1673612870138,45.19,16.599,16.582,10.0]
[1673612870139,20.0,16.598,16.582,10.0]
[1673612870355,45.19,16.597,16.584,10.0]
[1673612870553,20.0,16.598,16.585,45.23]
[1673612871075,20.0,16.598,16.586,10.0]
[1673612871293,65.19,16.599,16.586,10.0]
[1673612871513,65.19,16.599,16.586,125.0272]
[1673612872147,17.0,16.598,16.586,125.0272]
[1673612872345,20.0,16.597,16.586,125.0272]
[1673612873285,17.0,16.596,16.586,125.0272]
[1673612873613,20.0,16.595,16.586,125.0272]
[1673612873828,20.0,16.597,16.586,125.0272]
[1673612874028,20.0,16.597,16.587,45.22]
[1673612874243,20.0,16.598,16.587,45.22]
[1673612874433,20.0,16.598,16.588,10.0]